[Event "*** Titled Tuesday Blitz"]
[Site "Chess.com"]
[Date "2020.05.05"]
[Round "6"]
[White "AcsinteMatei"]
[Black "Quiet_Desperation"]
[Result "0-1"]
[WhiteElo "2390"]
[BlackElo "2234"]
[TimeControl "180+1"]
[EndTime "11:07:24 PDT"]
[Termination "Quiet_Desperation won by resignation"]

1. d4 {[%clk 0:03:00.9]} 1... Nf6 {[%clk 0:02:58.7]} 2. Bf4 {[%clk 0:02:58.7]}
2... e6 {[%clk 0:02:59.3]} 3. e3 {[%clk 0:02:57.2]} 3... d5 {[%clk 0:02:55.6]}
4. Nd2 {[%clk 0:02:55.4]} 4... Be7 {[%clk 0:02:54]} 5. h3 {[%clk 0:02:54.5]}
5... O-O {[%clk 0:02:53.8]} 6. Ngf3 {[%clk 0:02:55.1]} 6... c5 {[%clk 0:02:54]}
7. c3 {[%clk 0:02:55.1]} 7... Nc6 {[%clk 0:02:54.4]} 8. Ne5 {[%clk 0:02:55.3]}
8... Nxe5 {[%clk 0:02:53.5]} 9. dxe5 {[%clk 0:02:52.2]} 9... Nd7 {[%clk
0:02:53.6]} 10. Bd3 {[%clk 0:02:52.6]} 10... f6 {[%clk 0:02:53]} 11. exf6 {[%clk
0:01:53.1]} 11... Nxf6 {[%clk 0:02:39.7]} 12. Nf3 {[%clk 0:01:48.6]} 12... Bd6
{[%clk 0:02:38.7]} 13. Ne5 {[%clk 0:01:46.2]} 13... Qc7 {[%clk 0:02:36.7]} 14.
Nf3 {[%clk 0:01:34.5]} 14... e5 {[%clk 0:02:30.9]} 15. Bg5 {[%clk 0:01:27.8]}
15... e4 {[%clk 0:02:30.2]} 16. Bc2 {[%clk 0:01:28.3]} 16... exf3 {[%clk
0:02:29.9]} 17. Bxf6 {[%clk 0:01:28.8]} 17... Rxf6 {[%clk 0:02:28.5]} 18. gxf3
{[%clk 0:01:23.5]} 18... Be6 {[%clk 0:02:26.8]} 19. Qd3 {[%clk 0:01:23.9]} 19...
g6 {[%clk 0:02:21]} 20. O-O-O {[%clk 0:01:23.8]} 20... c4 {[%clk 0:02:13.4]} 21.
Qe2 {[%clk 0:01:12.8]} 21... b5 {[%clk 0:02:12.7]} 22. h4 {[%clk 0:01:02.6]}
22... b4 {[%clk 0:02:12.4]} 23. cxb4 {[%clk 0:01:02.8]} 23... c3 {[%clk
0:02:10.7]} 24. h5 {[%clk 0:00:59.2]} 24... Bxb4 {[%clk 0:01:48.4]} 25. hxg6
{[%clk 0:00:58.1]} 25... Qa5 {[%clk 0:01:45.6]} 26. gxh7+ {[%clk 0:00:38.3]}
26... Kh8 {[%clk 0:01:44.7]} 27. Bb3 {[%clk 0:00:37.5]} 27... d4 {[%clk
0:01:31.5]} 28. Bxe6 {[%clk 0:00:34.4]} 28... Rxe6 {[%clk 0:01:31.7]} 29. Qc4
{[%clk 0:00:32.9]} 29... Rae8 {[%clk 0:00:49.1]} 30. Rdg1 {[%clk 0:00:28.9]}
30... Qb6 {[%clk 0:00:32.4]} 31. Qd5 {[%clk 0:00:21.6]} 31... Ba3 {[%clk
0:00:23.4]} 32. Kd1 {[%clk 0:00:12.9]} 32... cxb2 {[%clk 0:00:18.9]} 33. Kc2
{[%clk 0:00:09.6]} 33... Qc6+ {[%clk 0:00:16.8]} 34. Kb1 {[%clk 0:00:09.5]}
34... Qxd5 {[%clk 0:00:16.7]} 0-1

[Event "*** Titled Tuesday Blitz"]
[Site "Chess.com"]
[Date "2020.05.05"]
[Round "6"]
[White "Zkid"]
[Black "Guenplen"]
[Result "0-1"]
[WhiteElo "2826"]
[BlackElo "2957"]
[TimeControl "180+1"]
[EndTime "11:07:25 PDT"]
[Termination "Guenplen won on time"]

1. e4 {[%clk 0:03:00.5]} 1... c5 {[%clk 0:02:59.7]} 2. Nf3 {[%clk 0:03:00.2]}
2... e6 {[%clk 0:03:00]} 3. d4 {[%clk 0:02:58]} 3... cxd4 {[%clk 0:03:00.9]} 4.
Nxd4 {[%clk 0:02:58.6]} 4... Nc6 {[%clk 0:03:01.3]} 5. Nc3 {[%clk 0:02:57.9]}
5... a6 {[%clk 0:03:01.6]} 6. Be3 {[%clk 0:02:57.8]} 6... Nf6 {[%clk 0:03:00.5]}
7. f4 {[%clk 0:02:50.7]} 7... Bb4 {[%clk 0:02:54.1]} 8. Nxc6 {[%clk 0:02:48.5]}
8... bxc6 {[%clk 0:02:52.3]} 9. e5 {[%clk 0:02:44.7]} 9... Nd5 {[%clk
0:02:50.5]} 10. Bd2 {[%clk 0:02:43.6]} 10... Nxc3 {[%clk 0:02:45.2]} 11. bxc3
{[%clk 0:02:42.9]} 11... Bc5 {[%clk 0:02:43.2]} 12. Bd3 {[%clk 0:02:37.3]} 12...
d6 {[%clk 0:02:28.5]} 13. Qe2 {[%clk 0:02:18.4]} 13... O-O {[%clk 0:02:09.6]}
14. Be3 {[%clk 0:02:03]} 14... Bxe3 {[%clk 0:02:04.7]} 15. Qxe3 {[%clk 0:02:02]}
15... g6 {[%clk 0:01:50.9]} 16. O-O {[%clk 0:01:54.6]} 16... a5 {[%clk
0:01:50.4]} 17. Rab1 {[%clk 0:01:45.6]} 17... d5 {[%clk 0:01:41]} 18. Rb6 {[%clk
0:01:39.1]} 18... c5 {[%clk 0:01:28.6]} 19. Qxc5 {[%clk 0:01:35.7]} 19... Bd7
{[%clk 0:01:24.2]} 20. Rfb1 {[%clk 0:01:20.9]} 20... Qc8 {[%clk 0:01:18]} 21.
Qa3 {[%clk 0:00:48.1]} 21... Ra7 {[%clk 0:01:06.9]} 22. Qd6 {[%clk 0:00:22.4]}
22... Ra8 {[%clk 0:00:59]} 23. Rb7 {[%clk 0:00:20]} 23... Ba4 {[%clk 0:00:55.7]}
24. Rc7 {[%clk 0:00:18.4]} 24... Qd8 {[%clk 0:00:49.9]} 25. Rbb7 {[%clk
0:00:16.4]} 25... Qh4 {[%clk 0:00:47.6]} 26. g3 {[%clk 0:00:13.6]} 26... Qg4
{[%clk 0:00:43.9]} 27. Kf2 {[%clk 0:00:11.1]} 27... Qd1 {[%clk 0:00:35.7]} 28.
Qc5 {[%clk 0:00:08.5]} 28... Bxc2 {[%clk 0:00:34.3]} 29. Be2 {[%clk 0:00:07.3]}
29... Qh1 {[%clk 0:00:30.8]} 30. Qe3 {[%clk 0:00:05.4]} 30... Be4 {[%clk
0:00:22.9]} 31. h4 {[%clk 0:00:03.5]} 31... d4 {[%clk 0:00:20.1]} 0-1

[Event "*** Titled Tuesday Blitz"]
[Site "Chess.com"]
[Date "2020.05.05"]
[Round "6"]
[White "SaySpade4VIP"]
[Black "RaunakSadhwani2005"]
[Result "0-1"]
[WhiteElo "2619"]
[BlackElo "2866"]
[TimeControl "180+1"]
[EndTime "11:07:25 PDT"]
[Termination "RaunakSadhwani2005 won by resignation"]

1. e4 {[%clk 0:03:00.9]} 1... Nf6 {[%clk 0:02:57.9]} 2. e5 {[%clk 0:02:54.7]}
2... Nd5 {[%clk 0:02:58.1]} 3. d4 {[%clk 0:02:55.2]} 3... d6 {[%clk 0:02:57.6]}
4. Nf3 {[%clk 0:02:50.4]} 4... dxe5 {[%clk 0:02:57.7]} 5. Nxe5 {[%clk
0:02:51.3]} 5... g6 {[%clk 0:02:57.3]} 6. g3 {[%clk 0:02:47.2]} 6... Bg7 {[%clk
0:02:54.4]} 7. Bg2 {[%clk 0:02:47.5]} 7... O-O {[%clk 0:02:54.5]} 8. O-O {[%clk
0:02:47.6]} 8... Nb6 {[%clk 0:02:46.2]} 9. c3 {[%clk 0:02:29.9]} 9... c6 {[%clk
0:02:40.2]} 10. Re1 {[%clk 0:02:24.2]} 10... N8d7 {[%clk 0:02:40.4]} 11. Nd3
{[%clk 0:02:14.6]} 11... Nf6 {[%clk 0:02:36.2]} 12. Nd2 {[%clk 0:02:11]} 12...
Bg4 {[%clk 0:02:33.4]} 13. Qb3 {[%clk 0:02:05.2]} 13... Be6 {[%clk 0:02:21.8]}
14. Rxe6 {[%clk 0:01:58]} 14... fxe6 {[%clk 0:02:22.7]} 15. Qxe6+ {[%clk
0:01:58.5]} 15... Kh8 {[%clk 0:02:23]} 16. Ne5 {[%clk 0:01:55.7]} 16... Qe8
{[%clk 0:02:22.9]} 17. Ndf3 {[%clk 0:01:42.5]} 17... Nfd7 {[%clk 0:02:17.7]} 18.
Bf4 {[%clk 0:01:34.5]} 18... Nxe5 {[%clk 0:02:07]} 19. Nxe5 {[%clk 0:01:28.4]}
19... Rd8 {[%clk 0:01:44.1]} 20. Re1 {[%clk 0:01:21.8]} 20... Nd5 {[%clk
0:01:36.1]} 21. Bc1 {[%clk 0:01:21.8]} 21... Rd6 {[%clk 0:01:35.1]} 22. Qg4
{[%clk 0:01:12.4]} 22... Rdf6 {[%clk 0:01:32]} 23. f4 {[%clk 0:01:10.7]} 23...
e6 {[%clk 0:01:28.7]} 24. h4 {[%clk 0:01:08.2]} 24... Ne7 {[%clk 0:01:20.8]} 25.
Nd3 {[%clk 0:01:03.4]} 25... Nf5 {[%clk 0:01:20.2]} 26. Kh2 {[%clk 0:01:02]}
26... R6f7 {[%clk 0:01:14.5]} 27. Nc5 {[%clk 0:00:59.8]} 27... Re7 {[%clk
0:01:14.6]} 28. Qd1 {[%clk 0:00:51.5]} 28... Nd6 {[%clk 0:01:10.4]} 29. Qb3
{[%clk 0:00:44.8]} 29... Rf6 {[%clk 0:01:01.7]} 30. Nd3 {[%clk 0:00:39]} 30...
Nf5 {[%clk 0:00:56.4]} 31. Ne5 {[%clk 0:00:34.6]} 31... Rf8 {[%clk 0:00:56]} 32.
Nd3 {[%clk 0:00:32.1]} 32... Qc8 {[%clk 0:00:55.5]} 33. a4 {[%clk 0:00:31.1]}
33... b6 {[%clk 0:00:55]} 34. Ne5 {[%clk 0:00:28.7]} 34... c5 {[%clk 0:00:53.5]}
35. Nc6 {[%clk 0:00:23.1]} 35... Rc7 {[%clk 0:00:46.3]} 36. Rxe6 {[%clk
0:00:20.6]} 36... cxd4 {[%clk 0:00:46.1]} 37. h5 {[%clk 0:00:16]} 37... gxh5
{[%clk 0:00:43.9]} 38. Qb5 {[%clk 0:00:05.9]} 38... h4 {[%clk 0:00:31.4]} 39.
Rd6 {[%clk 0:00:05.3]} 0-1

[Event "*** Titled Tuesday Blitz"]
[Site "Chess.com"]
[Date "2020.05.05"]
[Round "6"]
[White "Turquoise_2701"]
[Black "Aleksandar-Topalov"]
[Result "0-1"]
[WhiteElo "2157"]
[BlackElo "2392"]
[TimeControl "180+1"]
[EndTime "11:07:25 PDT"]
[Termination "Aleksandar-Topalov won by resignation"]

1. c4 {[%clk 0:03:00.9]} 1... Nf6 {[%clk 0:02:58.6]} 2. Nf3 {[%clk 0:03:00.8]}
2... g6 {[%clk 0:02:56.4]} 3. g3 {[%clk 0:03:01.2]} 3... Bg7 {[%clk 0:02:55.6]}
4. Bg2 {[%clk 0:03:01.6]} 4... O-O {[%clk 0:02:56.3]} 5. O-O {[%clk 0:03:02]}
5... c5 {[%clk 0:02:57]} 6. Nc3 {[%clk 0:03:00.4]} 6... Nc6 {[%clk 0:02:57.1]}
7. d3 {[%clk 0:03:01]} 7... a6 {[%clk 0:02:56.6]} 8. a3 {[%clk 0:03:00.2]} 8...
Rb8 {[%clk 0:02:56.7]} 9. Be3 {[%clk 0:02:57.6]} 9... d6 {[%clk 0:02:56.2]} 10.
Rb1 {[%clk 0:02:58.1]} 10... b5 {[%clk 0:02:56.1]} 11. cxb5 {[%clk 0:02:54.2]}
11... axb5 {[%clk 0:02:56.3]} 12. d4 {[%clk 0:02:39.6]} 12... b4 {[%clk
0:02:47.2]} 13. Na4 {[%clk 0:02:26.2]} 13... Ng4 {[%clk 0:02:26.5]} 14. dxc5
{[%clk 0:02:09.2]} 14... Nxe3 {[%clk 0:02:24.7]} 15. fxe3 {[%clk 0:02:10.1]}
15... Bf5 {[%clk 0:02:14.8]} 16. e4 {[%clk 0:01:46.4]} 16... Bxe4 {[%clk
0:02:12.7]} 17. Ng5 {[%clk 0:01:47]} 17... Bxg2 {[%clk 0:02:12.1]} 18. Kxg2
{[%clk 0:01:47.3]} 18... Qa5 {[%clk 0:02:02.7]} 19. Nxf7 {[%clk 0:01:32.2]}
19... Nd4 {[%clk 0:01:40]} 20. e3 {[%clk 0:01:24.3]} 20... Nf5 {[%clk
0:01:16.9]} 21. Rxf5 {[%clk 0:00:50.4]} 21... gxf5 {[%clk 0:01:15.8]} 22. Ng5
{[%clk 0:00:49.5]} 22... Qa8+ {[%clk 0:00:57]} 23. e4 {[%clk 0:00:40.7]} 23...
dxc5 {[%clk 0:00:54.9]} 24. Qb3+ {[%clk 0:00:38.8]} 24... Kh8 {[%clk 0:00:51.8]}
25. Nxc5 {[%clk 0:00:38.1]} 25... Qc6 {[%clk 0:00:44.6]} 26. Nce6 {[%clk
0:00:26]} 26... Rf6 {[%clk 0:00:38.6]} 27. Nd4 {[%clk 0:00:16.4]} 27... Qb7
{[%clk 0:00:34.8]} 28. Kh3 {[%clk 0:00:13.9]} 28... h6 {[%clk 0:00:29.6]} 29.
Nf7+ {[%clk 0:00:13.5]} 29... Kh7 {[%clk 0:00:27.2]} 30. e5 {[%clk 0:00:13.7]}
30... Rg6 {[%clk 0:00:20.5]} 31. Nxf5 {[%clk 0:00:13.3]} 31... Qf3 {[%clk
0:00:15.6]} 32. Nh4 {[%clk 0:00:09.9]} 32... Qxb3 {[%clk 0:00:15]} 33. Kg2
{[%clk 0:00:10.5]} 33... Qxf7 {[%clk 0:00:13.9]} 0-1

[Event "*** Titled Tuesday Blitz"]
[Site "Chess.com"]
[Date "2020.05.05"]
[Round "6"]
[White "Andreikka"]
[Black "Gabrielian_Artur"]
[Result "0-1"]
[WhiteElo "2940"]
[BlackElo "2724"]
[TimeControl "180+1"]
[EndTime "11:07:26 PDT"]
[Termination "Gabrielian_Artur won by resignation"]

1. c4 {[%clk 0:03:00.9]} 1... Nf6 {[%clk 0:02:59.7]} 2. Nc3 {[%clk 0:03:00.3]}
2... g6 {[%clk 0:02:57.8]} 3. e4 {[%clk 0:02:59.7]} 3... Bg7 {[%clk 0:02:57.7]}
4. d4 {[%clk 0:03:00.3]} 4... O-O {[%clk 0:02:56.5]} 5. Nf3 {[%clk 0:03:00.9]}
5... d6 {[%clk 0:02:56.8]} 6. Be2 {[%clk 0:03:01.5]} 6... e5 {[%clk 0:02:56.4]}
7. O-O {[%clk 0:03:02.1]} 7... Nc6 {[%clk 0:02:56.5]} 8. d5 {[%clk 0:03:02.2]}
8... Ne7 {[%clk 0:02:56.7]} 9. b4 {[%clk 0:03:02.8]} 9... Nd7 {[%clk 0:02:55.2]}
10. a4 {[%clk 0:02:58.5]} 10... a5 {[%clk 0:02:51.7]} 11. bxa5 {[%clk
0:02:56.9]} 11... Rxa5 {[%clk 0:02:50.4]} 12. Nd2 {[%clk 0:02:54.8]} 12... f5
{[%clk 0:02:49.1]} 13. Nb3 {[%clk 0:02:54.5]} 13... Ra8 {[%clk 0:02:49.2]} 14.
a5 {[%clk 0:02:54]} 14... Nf6 {[%clk 0:02:47.1]} 15. f3 {[%clk 0:02:52.5]} 15...
Nh5 {[%clk 0:02:38.1]} 16. Be3 {[%clk 0:02:42.4]} 16... Nf4 {[%clk 0:02:37]} 17.
Qd2 {[%clk 0:02:41.9]} 17... Nxe2+ {[%clk 0:02:23.9]} 18. Qxe2 {[%clk
0:02:40.1]} 18... f4 {[%clk 0:02:23.2]} 19. Bf2 {[%clk 0:02:39.8]} 19... g5
{[%clk 0:02:23.4]} 20. c5 {[%clk 0:02:39.9]} 20... Ng6 {[%clk 0:02:15.9]} 21.
Nb5 {[%clk 0:02:38.2]} 21... g4 {[%clk 0:02:13.6]} 22. fxg4 {[%clk 0:02:19]}
22... Qg5 {[%clk 0:02:06.5]} 23. Nxc7 {[%clk 0:02:09.8]} 23... Bxg4 {[%clk
0:02:00.3]} 24. Qd3 {[%clk 0:02:10]} 24... Rad8 {[%clk 0:01:30.2]} 25. cxd6
{[%clk 0:01:27.8]} 25... f3 {[%clk 0:01:14.3]} 26. Be3 {[%clk 0:01:28.1]} 26...
Qh5 {[%clk 0:01:05.9]} 27. g3 {[%clk 0:01:22.9]} 27... Rxd6 {[%clk 0:00:49.5]}
28. Bc5 {[%clk 0:01:23.1]} 28... Nf4 {[%clk 0:00:42.1]} 29. gxf4 {[%clk
0:01:10.4]} 29... Rg6 {[%clk 0:00:42.2]} 30. Kh1 {[%clk 0:01:06.7]} 30... Bh3
{[%clk 0:00:27.1]} 31. Rf2 {[%clk 0:01:05.6]} 31... Bg2+ {[%clk 0:00:25.3]} 32.
Kg1 {[%clk 0:00:56.6]} 32... exf4 {[%clk 0:00:16.8]} 33. Bd4 {[%clk 0:00:45.7]}
33... Qxh2+ {[%clk 0:00:16.7]} 0-1

[Event "*** Titled Tuesday Blitz"]
[Site "Chess.com"]
[Date "2020.05.05"]
[Round "6"]
[White "The_Machine04"]
[Black "GM4life"]
[Result "0-1"]
[WhiteElo "2291"]
[BlackElo "2168"]
[TimeControl "180+1"]
[EndTime "11:07:27 PDT"]
[Termination "GM4life won on time"]

1. d4 {[%clk 0:03:00.9]} 1... Nf6 {[%clk 0:02:54.6]} 2. Bg5 {[%clk 0:03:00.3]}
2... d5 {[%clk 0:02:40.5]} 3. e3 {[%clk 0:02:55.4]} 3... Ne4 {[%clk 0:02:39]} 4.
Bf4 {[%clk 0:02:49.6]} 4... c5 {[%clk 0:02:39.1]} 5. c3 {[%clk 0:02:44.2]} 5...
Nc6 {[%clk 0:02:39.5]} 6. Bd3 {[%clk 0:02:35.9]} 6... Bf5 {[%clk 0:02:25.6]} 7.
g4 {[%clk 0:02:19.7]} 7... Bg6 {[%clk 0:02:24.3]} 8. h4 {[%clk 0:02:19.8]} 8...
c4 {[%clk 0:02:22.1]} 9. Bc2 {[%clk 0:02:14.5]} 9... h5 {[%clk 0:02:18.5]} 10.
f3 {[%clk 0:01:58.9]} 10... Nf6 {[%clk 0:01:44.8]} 11. Bxg6 {[%clk 0:01:56.6]}
11... fxg6 {[%clk 0:01:43.6]} 12. Qc2 {[%clk 0:01:47.8]} 12... Kf7 {[%clk
0:01:40.8]} 13. Nh3 {[%clk 0:01:45.9]} 13... Qe8 {[%clk 0:01:22.3]} 14. g5
{[%clk 0:01:28.6]} 14... Nd7 {[%clk 0:01:18.9]} 15. e4 {[%clk 0:01:28.2]} 15...
e5 {[%clk 0:01:16.4]} 16. Be3 {[%clk 0:01:11.8]} 16... exd4 {[%clk 0:01:12.2]}
17. Bxd4 {[%clk 0:01:06.3]} 17... Bc5 {[%clk 0:01:09]} 18. Bxc5 {[%clk
0:00:43.4]} 18... Nxc5 {[%clk 0:01:09.9]} 19. O-O {[%clk 0:00:43.7]} 19... Qe5
{[%clk 0:00:50.3]} 20. Kg2 {[%clk 0:00:28.4]} 20... Rhe8 {[%clk 0:00:43]} 21.
exd5 {[%clk 0:00:19.4]} 21... Qxd5 {[%clk 0:00:41.4]} 22. Nd2 {[%clk 0:00:14.5]}
22... Re2+ {[%clk 0:00:38.3]} 23. Rf2 {[%clk 0:00:14.6]} 23... Rae8 {[%clk
0:00:36.2]} 24. Rf1 {[%clk 0:00:12.2]} 24... Nd3 {[%clk 0:00:30.1]} 25. Rxe2
{[%clk 0:00:02.4]} 25... Rxe2+ {[%clk 0:00:31]} 26. Nf2 {[%clk 0:00:02.3]} 26...
Nf4+ {[%clk 0:00:26.7]} 27. Kg3 {[%clk 0:00:02.7]} 27... Rxd2 {[%clk 0:00:26.9]}
28. Qe4 {[%clk 0:00:01.6]} 28... Ne2+ {[%clk 0:00:24.1]} 29. Kg2 {[%clk
0:00:01.5]} 29... Qxe4 {[%clk 0:00:22.7]} 30. fxe4 {[%clk 0:00:02.4]} 30... Rxb2
{[%clk 0:00:20.8]} 31. Nd3+ {[%clk 0:00:02.7]} 31... Nf4+ {[%clk 0:00:19.1]} 32.
Kg3 {[%clk 0:00:02.8]} 32... cxd3 {[%clk 0:00:18.9]} 33. Rxf4+ {[%clk
0:00:03.4]} 33... Ke6 {[%clk 0:00:19.1]} 0-1

[Event "*** Titled Tuesday Blitz"]
[Site "Chess.com"]
[Date "2020.05.05"]
[Round "6"]
[White "Harsha_Bharathakoti"]
[Black "MrTattaglia"]
[Result "0-1"]
[WhiteElo "2829"]
[BlackElo "2971"]
[TimeControl "180+1"]
[EndTime "11:07:29 PDT"]
[Termination "MrTattaglia won on time"]

1. Nf3 {[%clk 0:03:00.9]} 1... c5 {[%clk 0:02:57.4]} 2. c4 {[%clk 0:03:00.4]}
2... Nc6 {[%clk 0:02:56.5]} 3. d4 {[%clk 0:03:00.9]} 3... cxd4 {[%clk
0:02:56.1]} 4. Nxd4 {[%clk 0:03:01.8]} 4... Nf6 {[%clk 0:02:56.3]} 5. Nc3 {[%clk
0:03:00.8]} 5... e6 {[%clk 0:02:51.7]} 6. g3 {[%clk 0:03:00.7]} 6... Qb6 {[%clk
0:02:50.7]} 7. Nb3 {[%clk 0:03:00.6]} 7... Ne5 {[%clk 0:02:50.1]} 8. e4 {[%clk
0:03:00.5]} 8... Bb4 {[%clk 0:02:49.4]} 9. Qe2 {[%clk 0:03:01.1]} 9... d6 {[%clk
0:02:49]} 10. Bd2 {[%clk 0:02:34.3]} 10... O-O {[%clk 0:02:40.3]} 11. f4 {[%clk
0:02:07.8]} 11... Nc6 {[%clk 0:02:38.4]} 12. Bg2 {[%clk 0:01:38.9]} 12... a5
{[%clk 0:02:29.6]} 13. Be3 {[%clk 0:01:38.4]} 13... Qc7 {[%clk 0:02:18.4]} 14.
O-O {[%clk 0:01:38.3]} 14... Bxc3 {[%clk 0:02:17.6]} 15. bxc3 {[%clk 0:01:38.4]}
15... a4 {[%clk 0:02:16.4]} 16. Nd4 {[%clk 0:01:35.3]} 16... Na5 {[%clk
0:02:16.4]} 17. c5 {[%clk 0:01:25.8]} 17... Qxc5 {[%clk 0:01:45.7]} 18. Rfd1
{[%clk 0:00:48.3]} 18... Qc4 {[%clk 0:01:37.9]} 19. Qf3 {[%clk 0:00:28.5]} 19...
d5 {[%clk 0:01:37.7]} 20. exd5 {[%clk 0:00:21.7]} 20... exd5 {[%clk 0:01:35.9]}
21. Bf1 {[%clk 0:00:14.4]} 21... Qxc3 {[%clk 0:01:15.5]} 22. Nb5 {[%clk
0:00:14.7]} 22... Qb4 {[%clk 0:01:15]} 23. Rab1 {[%clk 0:00:07.9]} 23... Qe7
{[%clk 0:01:14.6]} 24. Re1 {[%clk 0:00:07.4]} 24... Ne4 {[%clk 0:01:14.1]} 25.
Bd4 {[%clk 0:00:07.6]} 25... Nc6 {[%clk 0:01:13.9]} 26. Ba1 {[%clk 0:00:06.3]}
26... Bf5 {[%clk 0:01:11.5]} 27. g4 {[%clk 0:00:06.4]} 27... Qc5+ {[%clk
0:01:08.2]} 28. Kg2 {[%clk 0:00:05.5]} 28... Bd7 {[%clk 0:00:52.7]} 29. Rbc1
{[%clk 0:00:04.4]} 29... Qb4 {[%clk 0:00:50.3]} 30. f5 {[%clk 0:00:04.9]} 30...
Ne5 {[%clk 0:00:40]} 31. Qf4 {[%clk 0:00:04.5]} 31... Bxb5 {[%clk 0:00:36.7]}
32. Qxe5 {[%clk 0:00:04.3]} 32... Nf6 {[%clk 0:00:33.4]} 33. Bxb5 {[%clk
0:00:03.4]} 33... Qxb5 {[%clk 0:00:28.5]} 34. g5 {[%clk 0:00:03.9]} 34... Nh5
{[%clk 0:00:28.7]} 35. f6 {[%clk 0:00:01.6]} 35... Rfe8 {[%clk 0:00:27]} 0-1

[Event "*** Titled Tuesday Blitz"]
[Site "Chess.com"]
[Date "2020.05.05"]
[Round "6"]
[White "GMNeiksans"]
[Black "Sweafty"]
[Result "1-0"]
[WhiteElo "2764"]
[BlackElo "2517"]
[TimeControl "180+1"]
[EndTime "11:07:31 PDT"]
[Termination "GMNeiksans won on time"]

1. b3 {[%clk 0:03:00.9]} 1... d6 {[%clk 0:02:59.1]} 2. Bb2 {[%clk 0:03:00.1]}
2... Nd7 {[%clk 0:03:00]} 3. Nc3 {[%clk 0:02:52.2]} 3... Ngf6 {[%clk 0:02:59.9]}
4. d4 {[%clk 0:02:52.1]} 4... g6 {[%clk 0:03:00.1]} 5. e4 {[%clk 0:02:51.7]}
5... Bg7 {[%clk 0:03:00.3]} 6. Qd2 {[%clk 0:02:52.1]} 6... O-O {[%clk
0:03:00.4]} 7. h4 {[%clk 0:02:51.9]} 7... h5 {[%clk 0:03:00.2]} 8. Nf3 {[%clk
0:02:50.7]} 8... c6 {[%clk 0:03:00.2]} 9. Ng5 {[%clk 0:02:48.7]} 9... b5 {[%clk
0:02:59.9]} 10. Bd3 {[%clk 0:02:39.8]} 10... a5 {[%clk 0:02:43.5]} 11. a4 {[%clk
0:02:31.7]} 11... b4 {[%clk 0:02:40.2]} 12. Ne2 {[%clk 0:02:30.7]} 12... Qc7
{[%clk 0:02:34.5]} 13. O-O-O {[%clk 0:02:20.6]} 13... c5 {[%clk 0:02:30.3]} 14.
f3 {[%clk 0:02:11.6]} 14... cxd4 {[%clk 0:02:17.9]} 15. Nxd4 {[%clk 0:02:08.2]}
15... Nc5 {[%clk 0:02:17.9]} 16. Kb1 {[%clk 0:01:59.1]} 16... Nxd3 {[%clk
0:02:16.2]} 17. Qxd3 {[%clk 0:01:55.2]} 17... Ba6 {[%clk 0:02:16.2]} 18. Qd2
{[%clk 0:01:55.2]} 18... Rab8 {[%clk 0:01:48.8]} 19. g4 {[%clk 0:01:46]} 19...
Rbc8 {[%clk 0:01:47.4]} 20. gxh5 {[%clk 0:01:42]} 20... Nxh5 {[%clk 0:01:46.7]}
21. Rhg1 {[%clk 0:01:36.9]} 21... d5 {[%clk 0:01:24.9]} 22. Nge6 {[%clk
0:01:11.9]} 22... fxe6 {[%clk 0:00:41.1]} 23. Nxe6 {[%clk 0:01:11.7]} 23...
Qxc2+ {[%clk 0:00:13.9]} 24. Qxc2 {[%clk 0:01:11]} 24... Rxc2 {[%clk 0:00:14.8]}
25. Kxc2 {[%clk 0:01:07.3]} 25... Rc8+ {[%clk 0:00:06.9]} 26. Kb1 {[%clk
0:01:07.4]} 26... Bxb2 {[%clk 0:00:06.7]} 27. Kxb2 {[%clk 0:01:07.9]} 27... dxe4
{[%clk 0:00:07.2]} 28. fxe4 {[%clk 0:01:04.3]} 28... Kf7 {[%clk 0:00:06.1]} 29.
Nd8+ {[%clk 0:00:52.2]} 29... Kg7 {[%clk 0:00:04.4]} 30. Ne6+ {[%clk 0:00:47.6]}
30... Kf7 {[%clk 0:00:04.5]} 31. Nd4 {[%clk 0:00:46.2]} 31... Nf4 {[%clk
0:00:04.2]} 32. Nb5 {[%clk 0:00:43.9]} 32... Bxb5 {[%clk 0:00:03.3]} 33. axb5
{[%clk 0:00:44]} 33... Rc5 {[%clk 0:00:04.2]} 34. Rgf1 {[%clk 0:00:39.5]} 34...
e5 {[%clk 0:00:04.8]} 35. Rd5 {[%clk 0:00:39.5]} 35... Rc3 {[%clk 0:00:05.3]}
36. b6 {[%clk 0:00:38.5]} 36... Rc6 {[%clk 0:00:05]} 37. Rxe5 {[%clk 0:00:38]}
37... Rf6 {[%clk 0:00:01.7]} 38. Rxf4 {[%clk 0:00:35.3]} 38... Rxf4 {[%clk
0:00:01.5]} 39. b7 {[%clk 0:00:35.9]} 39... Rf2+ {[%clk 0:00:01.1]} 40. Kc1
{[%clk 0:00:35.8]} 40... Rf1+ {[%clk 0:00:01.6]} 41. Kd2 {[%clk 0:00:35.7]} 1-0

[Event "*** Titled Tuesday Blitz"]
[Site "Chess.com"]
[Date "2020.05.05"]
[Round "6"]
[White "dbrankovic68"]
[Black "Kaua18"]
[Result "1-0"]
[WhiteElo "2456"]
[BlackElo "2292"]
[TimeControl "180+1"]
[EndTime "11:07:31 PDT"]
[Termination "dbrankovic68 won on time"]

1. e4 {[%clk 0:03:00.9]} 1... c5 {[%clk 0:03:00.1]} 2. Nf3 {[%clk 0:03:00.8]}
2... Nc6 {[%clk 0:03:00.5]} 3. Bb5 {[%clk 0:03:00.1]} 3... g6 {[%clk 0:03:00.4]}
4. Bxc6 {[%clk 0:02:58.5]} 4... dxc6 {[%clk 0:03:01.3]} 5. h3 {[%clk 0:02:58.9]}
5... e5 {[%clk 0:02:59.9]} 6. d3 {[%clk 0:02:58.6]} 6... Bg7 {[%clk 0:03:00.1]}
7. O-O {[%clk 0:02:56.8]} 7... Ne7 {[%clk 0:02:59.8]} 8. a4 {[%clk 0:02:56.8]}
8... Qc7 {[%clk 0:02:54.6]} 9. a5 {[%clk 0:02:55.5]} 9... h6 {[%clk 0:02:50.1]}
10. Nc3 {[%clk 0:02:51.7]} 10... Be6 {[%clk 0:02:49.6]} 11. Be3 {[%clk 0:02:50]}
11... c4 {[%clk 0:02:49.6]} 12. d4 {[%clk 0:02:38.4]} 12... Rd8 {[%clk
0:02:44.4]} 13. Ne2 {[%clk 0:02:18.6]} 13... O-O {[%clk 0:02:33.2]} 14. c3
{[%clk 0:02:14]} 14... f5 {[%clk 0:02:27.4]} 15. Qc2 {[%clk 0:02:03.6]} 15...
fxe4 {[%clk 0:02:18.2]} 16. Nxe5 {[%clk 0:01:56.4]} 16... Nf5 {[%clk 0:02:12.8]}
17. Nxg6 {[%clk 0:01:52.3]} 17... Rf6 {[%clk 0:02:03.8]} 18. Ngf4 {[%clk
0:01:51.1]} 18... Bf7 {[%clk 0:01:54.1]} 19. Qxe4 {[%clk 0:01:40.7]} 19... Re8
{[%clk 0:01:50.1]} 20. Qf3 {[%clk 0:01:40.4]} 20... Ne7 {[%clk 0:01:16.8]} 21.
Qg4 {[%clk 0:01:33.7]} 21... Nd5 {[%clk 0:01:16.6]} 22. Nxd5 {[%clk 0:01:27.2]}
22... Bxd5 {[%clk 0:01:11.7]} 23. Nf4 {[%clk 0:01:25.8]} 23... Re4 {[%clk
0:00:55.3]} 24. Nxd5 {[%clk 0:01:21]} 24... cxd5 {[%clk 0:00:55.1]} 25. Qh5
{[%clk 0:01:18.6]} 25... Kh7 {[%clk 0:00:40.6]} 26. a6 {[%clk 0:01:16]} 26...
bxa6 {[%clk 0:00:38]} 27. Qxd5 {[%clk 0:01:11.1]} 27... Ree6 {[%clk 0:00:37.9]}
28. Rae1 {[%clk 0:00:56]} 28... Rg6 {[%clk 0:00:30.5]} 29. Bc1 {[%clk
0:00:51.9]} 29... Rd6 {[%clk 0:00:27.9]} 30. Qe4 {[%clk 0:00:50.4]} 30... Qd7
{[%clk 0:00:22.8]} 31. Kh1 {[%clk 0:00:44]} 31... Qb5 {[%clk 0:00:14.5]} 32. Re3
{[%clk 0:00:38.8]} 32... Qh5 {[%clk 0:00:09.3]} 33. Rg3 {[%clk 0:00:33.9]} 33...
Re6 {[%clk 0:00:09.5]} 34. Qc2 {[%clk 0:00:32.9]} 34... Rf6 {[%clk 0:00:02.3]}
35. Re1 {[%clk 0:00:29.3]} 35... Rd6 {[%clk 0:00:01.5]} 36. Re5 {[%clk
0:00:26.2]} 1-0